bitfinex/quotes_SOLUSD_20230120
["timestamp","ask_amount","ask_price","bid_price","bid_amount"]
[1674249159210,52.24,23.985,23.951,126.9483713]
[1674249159412,10.0,23.983,23.952,10.0]
[1674249159601,69.24,23.982,23.951,126.9483713]
[1674249160336,69.24,23.982,23.951,98.5099254]
[1674249160337,22.11,23.98,23.951,98.5099254]
[1674249160560,49.24,23.979,23.951,98.5099254]
[1674249160772,30.0,23.978,23.951,98.5099254]
[1674249160969,49.25,23.977,23.951,98.5099254]
[1674249161182,20.0,23.976,23.952,38.28423467]
[1674249161383,49.25,23.975,23.952,38.28423467]
[1674249161595,30.0,23.974,23.952,38.28423467]
[1674249161812,49.25,23.973,23.952,38.28423467]
[1674249162015,20.0,23.972,23.952,38.28423467]
[1674249162235,49.25,23.971,23.951,98.5099254]
[1674249162451,10.0,23.969,23.951,98.5099254]
[1674249162765,52.26,23.968,23.951,98.5099254]
[1674249162973,17.0,23.967,23.951,133.33538033]
[1674249163189,20.96,23.966,23.951,133.33538033]
[1674249163399,10.0,23.964,23.951,98.5099254]
[1674249163584,49.26,23.963,23.951,98.5099254]
[1674249164033,49.26,23.963,23.951,98.0099254]
[1674249164222,49.26,23.963,23.951,135.0935572]
[1674249164430,17.96,23.963,23.951,135.0935572]
[1674249164653,20.0,23.966,23.951,135.0935572]
[1674249164863,20.0,23.968,23.951,98.0099254]
[1674249165281,20.0,23.972,23.951,98.0099254]
[1674249165494,10.0,23.971,23.952,50.58657636]
[1674249165705,10.0,23.974,23.952,108.61991054]
[1674249165916,10.0,23.974,23.953,87.74754429]
[1674249166112,10.0,23.974,23.953,135.89084595]
[1674249166331,31.28,23.98,23.954,153.2632122]
[1674249166536,41.28,23.978,23.955,10.0]
[1674249166744,20.0,23.977,23.955,152.64740529]
[1674249166958,31.29,23.976,23.956,87.66590429]
[1674249167174,20.0,23.975,23.956,87.66590429]
[1674249167396,10.0,23.974,23.956,87.66590429]
[1674249167595,31.29,23.973,23.951,98.0099254]
[1674249167804,31.29,23.973,23.952,48.50806433]
[1674249168014,0.96,23.972,23.951,98.0099254]
[1674249168220,0.96,23.973,23.951,98.0099254]
[1674249168429,31.29,23.972,23.952,10.0]
[1674249168662,0.96,23.971,23.952,10.0]
[1674249168851,10.0,23.974,23.952,10.0]
[1674249169055,10.0,23.974,23.953,10.87236625]
[1674249169296,10.0,23.974,23.951,146.51798973]
[1674249169606,20.0,23.973,23.951,98.0099254]
[1674249169998,31.29,23.972,23.951,98.0099254]
[1674249170209,10.0,23.97,23.952,36.74754636]
[1674249170529,69.26,23.969,23.951,98.0099254]
[1674249170746,10.0,23.968,23.951,98.0099254]
[1674249170947,69.26,23.967,23.951,98.0099254]
[1674249171386,10.0,23.966,23.951,76.0539254]
[1674249171600,37.96,23.965,23.951,76.0539254]
[1674249171792,37.0,23.965,23.951,76.0539254]
[1674249172004,10.0,23.964,23.951,76.0539254]
[1674249172226,10.0,23.962,23.951,76.0539254]
[1674249172419,31.31,23.961,23.951,76.0539254]
[1674249172630,48.31,23.961,23.951,76.0539254]
[1674249172852,20.0,23.96,23.951,76.0539254]
[1674249173065,20.0,23.96,23.92,93.2012]
[1674249173066,49.27,23.959,23.92,93.2012]
[1674249173276,20.0,23.958,23.926,10.87236625]
[1674249173487,10.0,23.957,23.933,46.84428793]
[1674249173796,20.0,23.956,23.934,10.87236625]
[1674249173994,20.0,23.956,23.934,99.27347171]
[1674249174201,10.0,23.955,23.935,85.48338106]
[1674249174436,51.32,23.954,23.929,10.87236625]
[1674249174647,51.32,23.954,23.929,42.14908538]
[1674249174973,10.0,23.953,23.93,42.95079003]
[1674249175183,10.0,23.955,23.93,42.95079003]
[1674249175503,399.2,23.997,23.953,20.0]
[1674249175815,399.2,23.997,23.94,118.72202816]
[1674249175816,399.2,23.997,23.96,22.01]
[1674249176027,31.26,23.996,23.96,22.01]
[1674249176225,10.0,23.995,23.961,151.28286791]
[1674249176551,31.26,23.999,23.97,22.11]
[1674249176749,31.24,24.009,23.971,49.25]
[1674249176961,31.23,24.019,23.98,22.11]
[1674249177177,10.0,24.018,23.981,10.0]
[1674249177381,31.23,24.017,23.981,58.38760849]
[1674249177710,31.23,24.017,23.982,141.26198124]
[1674249178116,10.0,24.016,23.983,141.26198124]
[1674249178326,31.24,24.015,23.983,103.71516278]
[1674249178552,31.24,24.015,23.984,103.71516278]
[1674249178745,31.24,24.015,23.984,92.87437275]
[1674249178951,31.24,24.015,23.985,92.87437275]
[1674249179268,10.0,24.014,23.973,31.29]
[1674249179486,31.24,24.013,23.972,122.4943]
[1674249179700,31.24,24.013,23.972,133.33509003]
[1674249180022,17.96,24.012,23.973,84.68233346]
[1674249180226,10.0,24.01,23.974,10.0]
[1674249180421,52.2,24.009,23.974,69.50077169]
[1674249180631,52.2,24.009,23.975,10.84079003]
[1674249180632,27.0,24.008,23.975,10.84079003]
[1674249180862,51.25,24.007,23.972,112.4943]
[1674249181073,17.96,24.006,23.972,112.4943]
[1674249181266,61.25,24.005,23.972,112.4943]
[1674249182114,10.0,24.004,23.973,32.89749846]
[1674249182323,51.25,24.003,23.966,10.84079003]
[1674249182548,17.96,24.002,23.966,10.84079003]
[1674249182734,51.25,24.001,23.966,10.84079003]
[1674249182951,17.96,24.0,23.966,30.7971578]
[1674249183184,61.26,23.999,23.967,10.0]
[1674249183370,17.96,23.998,23.967,10.0]
[1674249183591,51.26,23.997,23.967,10.0]
[1674249183792,51.26,23.997,23.967,30.7971578]
[1674249183793,17.96,23.996,23.967,30.7971578]
[1674249184011,31.26,23.995,23.941,31.33]
[1674249184325,10.0,23.994,23.953,10.84079003]
[1674249184536,69.22,23.993,23.953,10.84079003]
[1674249184861,10.0,23.992,23.954,40.92187113]
[1674249185080,10.0,23.99,23.955,10.0]
[1674249185385,52.23,23.989,23.955,59.90056845]
[1674249185594,17.0,23.988,23.956,49.90056845]
[1674249185809,31.27,23.987,23.956,49.90056845]
[1674249185999,31.27,23.989,23.958,10.0]
[1674249186328,10.0,23.99,23.959,41.76266116]
[1674249186539,10.0,23.99,23.96,31.31]
[1674249186745,10.0,23.99,23.96,82.08777291]
[1674249186943,20.0,23.989,23.961,41.76266116]
[1674249187155,20.0,23.989,23.962,10.0]
[1674249187363,20.0,23.991,23.963,17.96]
[1674249187584,20.0,23.991,23.963,82.08777291]
[1674249187798,31.27,23.99,23.963,40.32511175]
[1674249188007,20.0,23.989,23.962,10.84079003]
[1674249188224,31.27,23.988,23.958,44.569315]
[1674249188414,20.0,23.987,23.959,10.0]
[1674249188626,31.27,23.986,23.959,20.84079003]
[1674249188830,20.96,23.985,23.96,10.84079003]
[1674249189036,10.0,23.983,23.961,10.0]
[1674249189271,37.96,23.982,23.96,10.84079003]
[1674249189680,37.96,23.982,23.955,10.0]
[1674249189681,69.24,23.982,23.955,10.0]
[1674249189890,69.24,23.982,23.956,20.0]
[1674249190104,10.0,23.981,23.957,10.0]
[1674249190303,37.96,23.98,23.957,20.84079003]
[1674249190509,37.96,23.98,23.958,10.84079003]
[1674249191146,41.28,23.979,23.954,10.0]
[1674249191362,37.96,23.978,23.954,10.0]
[1674249191579,37.96,23.978,23.954,37.23051246]
[1674249191580,10.0,23.976,23.954,37.23051246]
[1674249191780,10.0,23.976,23.955,10.84079003]
[1674249191781,37.0,23.975,23.955,10.84079003]
[1674249192210,20.0,23.975,23.956,10.0]
[1674249192423,20.0,23.977,23.956,37.23051246]
[1674249192633,51.28,23.978,23.956,10.0]
[1674249192832,51.28,23.978,23.956,20.84079003]
[1674249193038,10.0,23.977,23.956,20.84079003]
[1674249193255,20.0,23.976,23.956,20.84079003]
[1674249193684,17.96,23.975,23.956,20.84079003]
[1674249194002,10.0,23.973,23.956,20.84079003]
[1674249194320,37.96,23.972,23.956,10.0]
[1674249194510,37.96,23.972,23.954,20.84079003]
[1674249194926,0.96,23.972,23.954,10.0]
[1674249195132,0.96,23.972,23.955,10.84079003]
[1674249195575,0.96,23.972,23.955,38.07130249]
[1674249195790,0.96,23.972,23.956,10.0]
[1674249196001,20.0,23.98,23.956,20.84079003]
[1674249196194,20.0,23.98,23.957,10.84079003]
[1674249196403,20.0,23.98,23.956,9.5]
[1674249196710,31.28,23.985,23.956,9.5]
[1674249196925,10.0,23.981,23.958,10.0]
[1674249197452,17.0,23.98,23.958,37.23051246]
[1674249197680,17.0,23.98,23.957,10.84079003]
[1674249197890,31.28,23.979,23.957,10.84079003]
[1674249198103,27.96,23.978,23.957,10.84079003]
[1674249198411,49.79,23.977,23.954,39.42204482]
[1674249198627,17.96,23.976,23.954,39.42204482]
[1674249198844,31.29,23.975,23.954,94.83214985]
[1674249199025,17.96,23.974,23.954,94.83214985]
[1674249199236,27.96,23.974,23.955,10.0]
[1674249199668,10.0,23.978,23.956,30.84079003]
[1674249199884,10.0,23.978,23.956,10.84079003]
[1674249201266,20.96,23.977,23.956,10.84079003]
[1674249201447,17.0,23.976,23.956,10.84079003]
[1674249201785,20.96,23.975,23.956,10.84079003]
[1674249202097,0.96,23.974,23.956,10.84079003]
[1674249202498,0.96,23.976,23.956,10.84079003]
[1674249202910,27.96,23.976,23.956,10.84079003]
[1674249203127,20.0,23.975,23.956,10.84079003]
[1674249203337,17.96,23.974,23.954,48.209315]
[1674249203568,20.0,23.973,23.956,10.84079003]
[1674249203778,17.96,23.972,23.956,10.84079003]
[1674249204190,20.0,23.971,23.951,10.0]
[1674249204401,20.0,23.971,23.952,10.84079003]
[1674249204611,20.0,23.971,23.952,10.34079003]
[1674249204822,20.0,23.975,23.953,20.84079003]
[1674249205017,20.0,23.977,23.953,20.84079003]
[1674249205228,20.0,23.977,23.953,10.0]
[1674249205442,10.0,23.978,23.953,10.0]
[1674249205659,31.29,23.977,23.953,20.84079003]
[1674249205872,10.0,23.975,23.953,20.84079003]
[1674249206079,49.25,23.974,23.953,20.84079003]
[1674249206506,49.25,23.974,23.953,60.26283485]
[1674249206739,20.0,23.973,23.953,60.26283485]
[1674249207039,20.0,23.973,23.954,17.96]
[1674249207241,41.28,23.983,23.954,17.96]
[1674249207454,41.28,23.983,23.955,30.84079003]
[1674249207643,41.28,23.983,23.956,17.96]
[1674249207856,10.0,23.983,23.957,10.0]
[1674249208089,10.0,23.983,23.958,17.0]
[1674249208293,31.28,23.985,23.958,27.80919006]
[1674249208617,20.0,23.983,23.959,10.80919006]
[1674249208828,10.0,23.981,23.957,10.0]
[1674249209019,37.0,23.98,23.959,10.80919006]
[1674249209351,37.0,23.98,23.957,20.80919006]
[1674249209756,10.0,23.979,23.957,20.80919006]
[1674249209967,37.0,23.978,23.957,20.80919006]
[1674249210177,37.96,23.978,23.957,20.80919006]
[1674249210400,69.24,23.978,23.957,20.80919006]
[1674249210605,37.96,23.978,23.957,20.80919006]
[1674249210811,10.0,23.977,23.957,20.80919006]
[1674249211022,37.96,23.976,23.957,10.0]
[1674249211237,69.25,23.976,23.957,20.80919006]
[1674249211447,37.96,23.976,23.957,20.80919006]
[1674249211768,20.0,23.975,23.957,20.80919006]
[1674249211954,0.96,23.976,23.953,10.0]
[1674249212163,0.96,23.974,23.953,10.0]
[1674249212384,20.0,23.975,23.953,10.0]
[1674249212594,0.96,23.974,23.953,10.0]
[1674249212799,10.96,23.974,23.953,10.0]
[1674249213126,37.0,23.973,23.949,10.0]
[1674249213339,32.25,23.972,23.949,10.0]
[1674249213539,37.0,23.971,23.949,10.0]
[1674249213742,20.0,23.971,23.949,10.0]
[1674249214079,20.0,23.971,23.949,20.80919006]
[1674249214288,20.0,23.976,23.95,17.0]
[1674249214505,20.0,23.979,23.95,17.0]
[1674249214692,10.0,23.979,23.952,10.0]
[1674249214903,20.0,23.978,23.953,17.0]
[1674249215108,20.0,23.978,23.954,0.96]
[1674249215426,31.28,23.985,23.955,47.70604482]
[1674249215630,31.28,23.985,23.956,37.96]
[1674249215842,31.28,23.985,23.957,10.0]
[1674249216061,10.0,23.99,23.958,17.96]
[1674249216268,31.27,23.987,23.958,74.61323471]
[1674249216590,31.28,23.985,23.959,56.65323471]
[1674249216806,10.0,23.99,23.961,10.0]
[1674249217001,10.0,23.99,23.962,17.96]
[1674249217205,10.0,23.99,23.962,74.61323471]
[1674249217419,10.0,23.99,23.963,56.65323471]
[1674249217648,10.0,23.989,23.964,17.96]
[1674249217859,10.0,23.989,23.965,10.0]
[1674249218052,10.0,23.989,23.966,17.96]
[1674249218262,10.0,23.99,23.966,17.96]
[1674249218263,31.27,23.991,23.967,20.0]
[1674249218596,20.0,23.99,23.968,17.96]
[1674249218814,20.0,23.99,23.969,10.0]
[1674249218995,20.0,23.99,23.969,10.80919006]
[1674249219201,20.0,23.993,23.967,20.0]
[1674249219415,20.0,23.993,23.965,10.0]
[1674249219416,10.0,23.994,23.966,20.0]
[1674249219626,17.96,23.993,23.967,17.0]
[1674249219836,10.0,23.992,23.968,20.80919006]
[1674249220062,0.96,23.991,23.968,20.80919006]
[1674249220255,0.96,23.991,23.969,10.80919006]
[1674249220463,0.96,23.991,23.968,10.0]
[1674249220685,20.96,23.991,23.968,10.0]
[1674249221114,27.0,23.99,23.968,10.0]
[1674249221330,20.96,23.989,23.968,10.0]
[1674249221644,10.0,23.987,23.967,10.0]
[1674249221834,17.96,23.986,23.966,20.0]
[1674249222053,17.96,23.986,23.969,10.80919006]
[1674249222267,17.96,23.986,23.965,20.0]
[1674249222495,10.0,23.985,23.965,20.0]
[1674249222680,10.0,23.983,23.963,10.0]
[1674249222891,51.28,23.982,23.963,10.0]
[1674249223106,10.0,23.98,23.963,10.0]
[1674249223322,37.96,23.979,23.959,112.8439]
[1674249223859,10.0,23.977,23.959,112.8439]
[1674249224045,17.96,23.976,23.959,123.65309006]
[1674249224254,20.0,23.975,23.959,112.8439]
[1674249224478,17.0,23.974,23.947,10.0]
[1674249224684,20.0,23.973,23.947,10.0]
[1674249224901,58.29,23.972,23.947,10.0]
[1674249225120,0.96,23.971,23.947,10.0]
[1674249225315,20.96,23.971,23.95,10.80919006]
[1674249225526,48.29,23.97,23.95,10.80919006]
[1674249225737,10.0,23.968,23.943,10.0]
[1674249225947,10.0,23.968,23.947,20.0]
[1674249226164,17.96,23.967,23.948,10.0]
[1674249226366,17.96,23.967,23.948,20.80919006]
[1674249226578,10.0,23.966,23.949,10.80919006]
[1674249226783,17.96,23.965,23.946,71.3035]
[1674249226987,17.96,23.965,23.946,82.11269006]
[1674249227200,31.3,23.968,23.946,82.11269006]
[1674249227419,20.0,23.969,23.946,71.3035]
[1674249227638,10.0,23.967,23.947,10.0]
[1674249227828,10.0,23.967,23.946,71.3035]
[1674249228041,51.3,23.966,23.946,71.3035]
[1674249228256,10.0,23.967,23.947,30.80919006]
[1674249228574,31.29,23.971,23.947,54.13242741]
[1674249228782,10.0,23.97,23.948,10.80919006]
[1674249229105,31.3,23.969,23.947,54.13242741]
[1674249229423,31.29,23.976,23.947,10.80919006]
[1674249229654,10.0,23.975,23.948,10.0]
[1674249229952,10.0,23.975,23.949,10.80919006]
[1674249229953,20.0,23.971,23.949,10.80919006]
[1674249230369,20.0,23.974,23.95,10.0]
[1674249230769,20.0,23.974,23.951,10.80919006]
[1674249230984,20.0,23.976,23.952,0.96]
[1674249231409,20.0,23.976,23.953,10.80919006]
[1674249231737,20.0,23.976,23.955,10.0]
[1674249231957,20.0,23.976,23.957,10.0]
[1674249232139,31.28,23.982,23.957,10.0]
[1674249232348,31.27,23.986,23.958,27.80919006]
[1674249232572,31.27,23.986,23.959,10.0]
[1674249232787,31.27,23.986,23.958,27.80919006]
[1674249232788,31.28,23.984,23.96,17.0]
[1674249233002,31.28,23.984,23.958,27.80919006]
[1674249233003,31.28,23.984,23.958,17.0]
[1674249233200,17.96,23.982,23.958,17.0]
[1674249233412,17.96,23.982,23.954,10.80919006]
[1674249233612,51.28,23.981,23.951,10.0]
[1674249233822,27.0,23.98,23.951,10.0]
[1674249234036,52.24,23.979,23.95,9.0]
[1674249234262,17.0,23.978,23.95,9.0]
[1674249234478,32.25,23.977,23.95,9.0]
[1674249234681,47.0,23.976,23.945,10.0]
[1674249234990,32.25,23.975,23.945,10.0]
[1674249235199,37.0,23.974,23.945,10.0]
[1674249235409,42.25,23.973,23.947,10.0]
[1674249235619,10.0,23.971,23.947,10.0]
[1674249235823,69.25,23.97,23.947,10.0]
[1674249236477,10.0,23.969,23.947,10.0]
[1674249236670,37.96,23.968,23.941,10.0]
[1674249236996,37.96,23.968,23.941,20.80919006]
[1674249237205,31.3,23.967,23.941,20.80919006]
[1674249237394,17.96,23.966,23.941,20.80919006]
[1674249237607,20.0,23.965,23.947,10.0]
[1674249237943,17.96,23.964,23.947,10.0]
[1674249238153,0.96,23.964,23.947,10.0]
[1674249238467,10.96,23.964,23.948,17.0]
[1674249238782,37.0,23.963,23.937,10.0]
[1674249239201,37.0,23.963,23.937,10.80919006]
[1674249239202,32.27,23.962,23.937,10.80919006]
[1674249239525,10.0,23.96,23.934,10.0]
[1674249239727,52.27,23.959,23.92,135.8516]
[1674249239936,17.0,23.958,23.925,10.80919006]
[1674249240245,17.0,23.958,23.91,22.08]
[1674249240246,22.16,23.95,23.91,22.08]
[1674249240464,22.16,23.95,23.902,31.38]
[1674249240465,31.32,23.949,23.902,31.38]
[1674249240650,30.0,23.948,23.903,19.80919006]
[1674249240861,31.33,23.947,23.903,59.86003781]
[1674249241193,37.96,23.946,23.91,22.16]
[1674249241404,31.33,23.945,23.91,22.16]
[1674249241620,37.96,23.944,23.907,108.0477]
[1674249241938,31.33,23.943,23.911,10.0]
[1674249242251,20.0,23.942,23.912,30.80919006]
[1674249242442,31.33,23.943,23.92,22.08]
[1674249242653,31.33,23.947,23.921,17.96]
[1674249242861,41.31,23.959,23.921,17.96]
[1674249243078,22.16,23.95,23.921,17.0]
[1674249243296,31.32,23.949,23.921,17.0]
[1674249243695,10.0,23.948,23.922,10.0]
[1674249243918,10.0,23.948,23.92,108.0477]
[1674249243919,31.33,23.947,23.92,108.0477]
[1674249244245,20.96,23.946,23.922,10.0]
[1674249244442,10.0,23.944,23.922,10.0]
[1674249244649,69.29,23.943,23.923,17.0]
[1674249245192,20.0,23.943,23.923,17.0]
[1674249245389,20.0,23.943,23.924,21.59932175]
[1674249245737,10.0,23.953,23.925,47.63932175]
[1674249245909,10.0,23.953,23.926,0.96]
[1674249246119,10.0,23.953,23.926,11.59932175]
[1674249246331,10.0,23.953,23.928,10.0]
[1674249246536,10.0,23.953,23.929,17.0]
[1674249247274,31.32,23.952,23.929,17.0]
[1674249247503,10.0,23.951,23.928,10.0]
[1674249247716,10.0,23.951,23.925,20.0]
[1674249247929,31.32,23.95,23.925,20.0]
[1674249248235,31.32,23.95,23.92,130.1977]
[1674249248453,10.0,23.948,23.92,108.0477]
[1674249248639,10.0,23.946,23.92,108.0477]
[1674249248853,37.96,23.945,23.913,10.0]
[1674249249072,69.00716793,23.945,23.913,10.0]
[1674249249284,69.00716793,23.945,23.912,10.0]
[1674249249493,10.0,23.944,23.911,10.0]
[1674249249714,49.29,23.943,23.911,10.0]
[1674249249921,49.29,23.943,23.911,20.63932175]
[1674249250112,17.96,23.943,23.911,20.63932175]
[1674249250323,10.0,23.942,23.913,10.0]
[1674249250655,17.96,23.941,23.914,19.0]
[1674249250860,31.33,23.94,23.914,19.0]
[1674249251069,17.96,23.939,23.914,19.0]
[1674249251280,37.96,23.939,23.915,10.0]
[1674249251811,31.34,23.938,23.915,10.0]
[1674249252006,20.0,23.939,23.92,22.16]
[1674249252212,20.0,23.944,23.921,17.96]
[1674249252427,20.0,23.945,23.921,27.96]
[1674249252843,20.0,23.945,23.921,64.38045192]
[1674249253076,31.32,23.95,23.922,20.0]
[1674249253295,20.0,23.949,23.923,17.96]
[1674249253494,20.0,23.949,23.93,22.08]
[1674249253813,20.0,23.954,23.931,17.96]
[1674249254022,20.0,23.956,23.931,17.96]
[1674249254330,51.31,23.956,23.931,17.96]
[1674249254547,10.0,23.955,23.93,38.06711859]
[1674249254753,10.0,23.955,23.932,47.55368089]
[1674249254754,51.32,23.954,23.932,47.55368089]
[1674249254968,51.32,23.954,23.93,38.06711859]
[1674249255277,51.32,23.954,23.92,139.1917]
[1674249255278,10.0,23.953,23.924,10.0]
[1674249255489,51.32,23.952,23.924,10.0]
[1674249255703,22.01,23.95,23.92,117.0317]
[1674249255889,68.32,23.949,23.921,10.0]
[1674249256107,116.7368,23.948,23.915,20.63932175]
[1674249256323,10.0,23.946,23.915,20.63932175]
[1674249256530,69.29,23.945,23.917,38.06711859]
[1674249256746,69.29,23.945,23.918,38.06711859]
[1674249256959,10.0,23.944,23.919,10.0]
[1674249257158,51.33,23.943,23.919,10.0]
[1674249257364,27.96,23.942,23.915,10.0]
[1674249257580,51.33,23.941,23.915,10.0]
[1674249257790,17.96,23.94,23.912,10.0]
[1674249258097,10.0,23.938,23.912,20.63932175]
[1674249258318,10.0,23.936,23.913,20.63932175]
[1674249258645,52.3,23.935,23.913,10.0]
[1674249258846,17.0,23.934,23.913,10.0]
[1674249259044,30.96,23.933,23.913,10.0]
[1674249259987,10.0,23.931,23.912,10.0]
[1674249260199,10.0,23.929,23.908,110.4985]
[1674249260421,20.0,23.928,23.907,108.0477]
[1674249260631,20.0,23.93,23.91,22.16]
[1674249260958,19.5,23.93,23.911,20.63932175]
[1674249261352,31.34,23.937,23.911,20.63932175]
[1674249261353,10.0,23.929,23.911,54.48193598]
[1674249261562,10.0,23.929,23.912,17.96]
[1674249261898,10.0,23.929,23.912,30.43702859]
[1674249262088,10.0,23.927,23.907,108.0477]
[1674249262304,51.35,23.926,23.907,108.0477]
[1674249262513,17.96,23.925,23.907,108.0477]
[1674249262843,51.36,23.924,23.907,108.0477]
[1674249263367,51.36,23.924,23.908,10.0]
[1674249263368,10.0,23.923,23.908,10.0]
[1674249263563,0.96,23.922,23.908,10.0]
[1674249263775,20.0,23.922,23.908,10.0]
[1674249264197,10.96,23.921,23.902,10.0]
[1674249264410,20.0,23.92,23.902,10.0]
[1674249264622,19.5,23.92,23.901,10.0]
[1674249265163,10.0,23.919,23.901,10.0]
[1674249265467,10.0,23.919,23.895,120.2004]
[1674249265664,41.36,23.919,23.895,10.0]
[1674249266106,41.36,23.919,23.896,0.96]
[1674249266298,20.0,23.918,23.896,17.96]
[1674249266727,10.0,23.917,23.894,110.3841]
[1674249266940,20.0,23.916,23.894,110.3841]
[1674249267148,10.0,23.915,23.895,10.0]
[1674249267360,20.0,23.914,23.894,110.3841]
[1674249267557,20.0,23.914,23.894,154.22671423]
[1674249267771,10.0,23.919,23.895,20.0]
[1674249267984,10.0,23.919,23.896,10.0]
[1674249268197,10.0,23.919,23.896,53.84261423]
[1674249268412,31.36,23.918,23.896,43.84261423]
[1674249268627,31.36,23.918,23.897,45.48875248]
[1674249269146,10.0,23.916,23.895,10.0]
[1674249269342,10.0,23.916,23.888,38.53570337]
[1674249269343,37.96,23.915,23.88,22.27]
[1674249269553,37.96,23.915,23.882,10.0]
[1674249269554,10.0,23.913,23.882,10.0]
[1674249269755,32.33,23.912,23.882,10.0]
[1674249269976,10.0,23.913,23.883,10.63932175]
[1674249270177,10.0,23.916,23.89,22.16]
[1674249270387,10.0,23.917,23.89,22.16]
[1674249270616,112.6079,23.918,23.891,10.63932175]
[1674249270827,41.36,23.92,23.9,22.15]
[1674249271020,31.36,23.924,23.901,0.96]
[1674249271231,41.35,23.925,23.901,32.44829526]
[1674249271565,31.35,23.926,23.902,17.0]
[1674249271766,31.35,23.926,23.903,0.96]
[1674249271978,31.35,23.926,23.903,46.50903671]
[1674249272292,33.75576951,23.929,23.903,46.50903671]
[1674249272293,10.0,23.929,23.905,10.0]
[1674249272504,10.0,23.928,23.91,22.08]
[1674249272829,143.9479,23.935,23.91,22.08]
[1674249273017,143.9479,23.935,23.911,71.50205204]
[1674249273224,143.9479,23.935,23.91,46.07652581]
[1674249273442,10.0,23.934,23.912,10.0]
[1674249273668,22.16,23.93,23.905,10.0]
[1674249273982,51.35,23.929,23.901,10.0]
[1674249274181,10.0,23.928,23.901,10.0]
[1674249274387,10.0,23.926,23.901,10.0]
[1674249274606,20.96,23.925,23.901,10.0]
[1674249274801,20.96,23.925,23.897,10.0]
[1674249275012,129.3898,23.925,23.898,0.96]
[1674249275228,27.0,23.924,23.897,0.96]
[1674249275444,20.96,23.923,23.894,121.8734]
[1674249275658,48.36,23.922,23.894,111.8734]
[1674249275868,20.96,23.921,23.894,111.8734]
[1674249276072,10.0,23.919,23.895,10.0]
[1674249276281,69.32,23.918,23.894,111.8734]
[1674249276799,69.32,23.918,23.87,22.08]
[1674249277134,22.16,23.91,23.882,16.739336]
[1674249277349,52.33,23.909,23.882,16.739336]
[1674249277534,17.0,23.908,23.882,16.739336]
[1674249277748,52.34,23.907,23.882,16.739336]
[1674249277973,52.34,23.907,23.883,10.0]
[1674249278280,116.0815,23.906,23.883,10.0]
[1674249278501,32.34,23.905,23.883,10.0]